Cogmind - Beta 10.2 @@@ ROGUE MODE // 2021.01.09 @ 14:04:50 Player: CrossedViper Result: Destroyed by Y-64 Sentinel with Wave Gun Performance ------------- Evolutions (5) 2500 Regions Visited (17) 3400 Robots Destroyed (244) 1220 Value Destroyed (9013) 9013 Prototype IDs (34) 680 Alien Tech Used (0) 0 Bonus (4726) 4726 TOTAL SCORE: 21539 Bonus ------- Triggered High Security 500 High Alert Combat Kills 1888 Follower Combat Kills 1345 Network Hubs Disabled 600 Aligned with FarCom 300 Destroyed Z-Imprinter 1000 Met R17 at Cetus 500 Friendly Fire -1407 Cogmind --------- Core Integrity 0/1000 Matter 172/300 Energy 100/100 System Corruption 14% Temperature Cool (9) Movement Core (850) Ox16 Location -5/Factory Parts ------- > --- POWER (2) -------- Micro Fission Core > --- PROPULSION (3) --- (None) > --- UTILITY (9) ------ Large Storage Unit Large Storage Unit Experimental Signal Interpreter Advanced Target Analyzer Launcher Loader Improved Thermal Shield Makeshift Hacking Suite > --- WEAPON (3) ------- (None) > --- INVENTORY (16) --- VTOL Module Improved Heat Sink Long-range Sensor Array Long-range Terrain Scanner Advanced Transmission Jammer Medium Regenerative Plating Makeshift Hacking Suite System Purifier Improved Proton Missile Launcher Peak State ------------ > --- POWER ------------ Cooled Fission Core Micro Fission Core > --- PROPULSION ------- Armored Medium Treads Centrium Heavy Treads > --- UTILITY ---------- Large Storage Unit Large Storage Unit Large Storage Unit Experimental Signal Interpreter Advanced Target Analyzer Experimental Armor Integrity Analyzer Centrium Medium Armor Plating Medium Regenerative Plating Experimental Hacking Suite > --- WEAPON ----------- Gauss Rifle Smartbomb Launcher > --- INVENTORY -------- Armored Medium Treads Armored Medium Treads Armored Medium Treads Improved Heat Sink Large Storage Unit Long-range Sensor Array Long-range Terrain Scanner Launcher Loader Advanced Transmission Jammer Zionite Weapon Casing Centrium Medium Armor Plating Centrium Medium Armor Plating Medium Reflective Plating Improved Thermal Shield Makeshift Hacking Suite Makeshift Hacking Suite System Purifier Mobile Refinery Mk. CCLXVII Improved Proton Missile Launcher [Rating: 113] Favorites ----------- Power Enhanced Nuclear Core Engine Light Ion Engine Power Core Enhanced Nuclear Core Reactor Cold Fusion Reactor Propulsion Light Treads Treads Light Treads Leg Zionite Composite Leg I Wheel Wheel Utility Large Storage Unit Device Long-range Sensor Array Storage Large Storage Unit Processor Experimental Armor Integrity Analyzer Hackware Experimental Hacking Suite Protection Core Shielding Weapon Improved Assault Rifle Energy Gun Zionite Phaser-S Energy Cannon Compact Ion Cannon Ballistic Gun Improved Assault Rifle Launcher Heavy Rocket Launcher Slashing Weapon Makeshift Sword Build | -11 -10 -10 -10 -9 -8 -7 -7 -7 -7 -7 -6 -6 -6 -6 -6 -6 -5 ------- Run | Scr Mat Min Exi Min Mat Fac Low Low Zio Dee Pro Fac Ext Cet Arc Hub Fac Slots Evolved 10 | . . . . . 4 2 . . . . . 2 . . . . 2 Power 1 | . . . . . . . . . . . . . . . . . 1 Propulsion 1 | . . . . . . 1 . . . . . . . . . . . Utility 7 | . . . . . 4 1 . . . . . 1 . . . . 1 Weapon 1 | . . . . . . . . . . . . 1 . . . . . Parts Attached 272 | . 13 2 12 2 23 33 23 12 20 28 12 10 16 15 2 7 42 Power 22 | . 1 . 1 . 3 3 1 1 . 3 1 . . 2 1 . 5 Engine 3 | . 1 . . . 1 . . . . . . . . . . . 1 Core 10 | . . . . . . 3 1 1 . 2 . . . . . . 3 Reactor 9 | . . . 1 . 2 . . . . 1 1 . . 2 1 . 1 Propulsion 55 | . 7 1 2 1 5 7 3 . 1 3 2 3 9 1 . 1 9 Treads 44 | . 4 1 2 1 5 7 3 . 1 2 1 . 9 1 . 1 6 Leg 5 | . . . . . . . . . . 1 1 . . . . . 3 Wheel 6 | . 3 . . . . . . . . . . 3 . . . . . Hover . | . . . . . . . . . . . . . . . . . . Flight . | . . . . . . . . . . . . . . . . . . Utility 130 | . 2 . 4 . 10 20 15 9 15 14 8 4 5 7 . 1 16 Device 52 | . . . 1 . 3 11 11 4 4 6 1 2 2 2 . . 5 Storage 15 | . 1 . 2 . 2 . . . 3 1 3 . . 1 . 1 1 Processor 10 | . . . . . . 2 1 . 6 . . . . . . . 1 Hackware 4 | . . . . . 1 . . . . . . 2 . . . . 1 Protection 49 | . 1 . 1 . 4 7 3 5 2 7 4 . 3 4 . . 8 Artifact . | . . . . . . . . . . . . . . . . . . Weapon 65 | . 3 1 5 1 5 3 4 2 4 8 1 3 2 5 1 5 12 Energy Gun 10 | . 1 . . . . . 2 . . 2 1 . 1 1 . 2 . Energy Cannon 9 | . . . 1 . 1 . . . . . . 2 1 2 . . 2 Ballistic Gun 28 | . 1 1 3 1 3 3 . 2 3 4 . 1 . 1 1 1 3 Ballistic Cannon . | . . . . . . . . . . . . . . . . . . Launcher 16 | . 1 . . . 1 . 1 . 1 2 . . . 1 . 2 7 Special Weapon . | . . . . . . . . . . . . . . . . . . Impact Weapon . | . . . . . . . . . . . . . . . . . . Slashing Weapon 2 | . . . 1 . . . 1 . . . . . . . . . . Piercing Weapon . | . . . . . . . . . . . . . . . . . . Special Melee Weapon . | . . . . . . . . . . . . . . . . . . Unidentified Prototypes 31 | . . . 3 . 2 1 . . 7 8 . 2 . 7 . . 1 Parts Lost 63 | . 2 1 4 . 2 6 3 . 1 3 8 1 2 . 1 3 26 Power 8 | . 1 . 1 . 1 1 1 . . . 1 . . . . 1 1 Propulsion 18 | . . . 1 . . 1 2 . . 1 4 . 1 . . . 8 Utility 17 | . . . . . . 2 . . 1 1 3 . . . . . 10 Weapon 20 | . 1 1 2 . 1 2 . . . 1 . 1 1 . 1 2 7 Highest Loss Streak 14 | . 2 1 4 . 1 4 2 . 1 2 5 1 1 . 1 1 14 Average Slot Usage (%) 94 | . 96 99 91 100 98 99 99 99 97 93 86 86 99 94 92 92 81 Engine 1 | . 12 14 8 . 2 1 . . . . . . . . . . . Core 3 | . . . . . . 5 6 7 7 7 3 . . . . . 4 Reactor 2 | . . . 5 14 5 . . . . . 3 6 6 6 6 6 3 Treads 18 | . 17 28 28 28 18 22 22 23 22 16 7 . 17 16 13 13 7 Leg 1 | . . . . . . . . . . 5 9 6 . . . . . Device 7 | . . . . . 10 14 12 13 8 9 5 6 4 5 6 6 3 Storage 17 | . 14 14 13 14 23 23 23 23 22 8 10 20 20 20 20 20 16 Processor 11 | . . . . . . 2 9 15 19 23 21 13 13 13 13 13 15 Hackware 2 | . . . . . 3 4 . . . . . 10 7 6 6 6 4 Protection 6 | . 12 14 8 14 16 7 7 . 1 5 7 1 5 3 6 6 7 Energy Gun 2 | . 12 6 . . . . 2 2 . 2 11 5 1 2 3 1 . Energy Cannon 2 | . . . . . 7 . . . . . . 5 13 15 13 10 4 Ballistic Gun 10 | . 14 20 21 25 10 14 11 12 13 8 2 6 3 . 1 6 2 Naked Turns . | . . . . . . . . . . . . . . . . . . Heaviest Build 111 | 10 25 24 96 34 83 76 77 71 67 103 103 83 86 97 96 96 111 Greatest Support 110 | 20 40 40 40 40 40 64 64 63 63 60 40 26 70 110 110 110 107 Greatest Overweight (x) 28 | . 2 . 2 . 2 1 1 1 1 2 4 4 3 1 . . 28 Average Overweight (x) . | . 1 . . . 1 1 1 . . 1 2 2 1 . . . . Largest Inventory Capacity 24 | . 10 10 24 10 22 22 22 22 22 24 24 22 22 22 22 22 22 Average Capacity 19 | . 8 10 14 10 19 22 22 22 21 18 23 22 22 22 22 22 21 Most Carried 24 | . 10 10 24 10 21 22 22 22 22 24 24 22 22 22 22 22 22 Average Carried 18 | . 6 9 12 9 15 21 20 21 20 17 21 19 21 21 21 21 18 Final Capacity 24 | 6 10 10 10 10 22 22 22 22 22 24 22 22 22 22 22 22 16 Final Carried 24 | 6 10 10 10 10 20 22 20 22 22 24 17 22 22 22 21 21 9 Class Distribution -------------------- 42% | Hauler-Mutant 17% | Mutant 15% | Hauler-Skirmisher 15% | Scavenger-Mutant 4% | Scavenger-Gunner Dominant Class ---------------- Mutant | -10/Materials Mutant | -10/Mines Mutant | -10/Exiles Mutant | -9/Mines Hauler-Mutant | -8/Materials Hauler-Mutant | -7/Factory Hauler-Skirmisher | -7/Lower Caves Hauler-Skirmisher | -7/Lower Caves Hauler-Mutant | -7/Zion Hauler-Mutant | -7/Deep Caves Hauler-Mutant | -6/Proximity Caves Hacker-Gunner | -6/Factory Scavenger-Mutant | -6/Extension Scavenger-Gunner | -6/Cetus Scavenger-Mutant | -6/Archives Scavenger-Mutant | -6/Hub_04(d) Hauler-Mutant | -5/Factory Resources | -11 -10 -10 -10 -9 -8 -7 -7 -7 -7 -7 -6 -6 -6 -6 -6 -6 -5 ----------- Run | Scr Mat Min Exi Min Mat Fac Low Low Zio Dee Pro Fac Ext Cet Arc Hub Fac Matter Collected 5108 | 200 63 210 238 86 537 857 388 149 170 443 180 63 175 200 20 294 835 Remotely . | . . . . . . . . . . . . . . . . . . Salvage Created 10819 | . 192 314 116 61 1327 1343 250 181 . 324 280 200 1254 432 242 1770 2533 Parts 562 | . 14 21 7 6 75 82 15 7 . 18 13 9 59 23 10 88 115 Haulers Intercepted 9 | . 1 . . . 4 1 . . . . . . . . . 2 1 Recyclers Shooed 7 | . . . . . 1 1 . . . . . 2 1 . . . 2 Parts Field Recycled . | . . . . . . . . . . . . . . . . . . Retrieved Matter . | . . . . . . . . . . . . . . . . . . Parts Self-Destructed 39 | . . . . . . . 19 7 . . 13 . . . . . . Prevented 2 | . . . . . . . . 2 . . . . . . . . . Kills | -11 -10 -10 -10 -9 -8 -7 -7 -7 -7 -7 -6 -6 -6 -6 -6 -6 -5 ------- Run | Scr Mat Min Exi Min Mat Fac Low Low Zio Dee Pro Fac Ext Cet Arc Hub Fac Combat Hostiles Destroyed 176 | . 5 7 1 4 23 20 10 3 . 7 4 . 16 5 3 24 44 Melee 1 | . . . 1 . . . . . . . . . . . . . . Guns 69 | . 2 5 . 4 10 20 5 3 . 2 4 . . . . 9 5 Cannons 42 | . . . . . 10 . . . . . . . 16 3 1 9 3 AOE 55 | . 3 2 . . 3 . 4 . . 4 . . . 2 . 5 32 Classes Destroyed 20 | . 5 . 1 . 4 2 1 . . 2 1 . 1 1 . . 2 Worker 19 | . 1 4 . . . 3 . . . . . 1 . . . 7 3 Builder 12 | . 1 . . . 2 1 . . . . . 1 . . . 4 3 Hauler 9 | . 1 . . . 4 1 . . . . . . . . . 2 1 Recycler 8 | . . . . . . 3 . . . . . 1 2 . . . 2 Mechanic 2 | . . . . . . . . . . . . . . . . . 2 Operator 2 | . . . . . . . . . . . . . 2 . . . . Watcher 11 | . . . . . 2 1 . . . . . 1 1 1 . 3 2 Swarmer 45 | . 3 3 . 4 3 6 8 . . . . . 3 2 . 6 7 Saboteur 1 | . . . . . . . . . . . . . . . . . 1 Grunt 58 | . 2 4 . . 12 7 . 2 . . . . 1 . . 9 21 Brawler 2 | . . . . . . . . . . . . . . . . . 2 Duelist 7 | . . . . . 2 1 . . . . . . 1 . . . 3 Sentry 28 | . . . . . 4 3 . 1 . . 1 . 6 . 3 8 2 Hunter 13 | . . . . . 2 . 1 . . . 2 . 2 . . . 6 Programmer 8 | . . . . . . 3 . . . . . . 1 1 . 1 2 Behemoth 3 | . . . . . . . . . . . 1 . 2 . . . . Cetus Guard 2 | . . . . . . . . . . . . . . 2 . . . Zionite 5 | . . . 5 . . . . . . . . . . . . . . Z-Light 5 | . . . . . . . . . . 5 . . . . . . . Assembled 2 | . . . . . . . . . . 2 . . . . . . . Savage 1 | . . . . . . . . . . . . . . 1 . . . Mutant 1 | . . . . . . . 1 . . . . . . . . . . Best Kill Streak 19 | . 5 3 3 4 6 7 4 1 . 4 2 2 4 3 1 6 19 Combat Bots Only 16 | . 2 3 1 4 4 3 4 1 . 4 2 . 4 3 1 3 16 Max Kills in Single Turn 4 | . 3 3 1 2 3 1 2 1 . 1 1 1 1 2 1 4 4 Gunslinging 1 | . . . . 1 . . . . . . . . . . . . . Exploded 3 | . 2 2 . . 3 . 2 . . 1 . . . 1 . 2 3 Melee 1 | . . . 1 . . . . . . . . . . . . . . Uniques/NPCs Destroyed 6 | . . . 4 . . . . . . 1 . . . 1 . . . EX-DEC (-10/Exiles) EX-BIN (-10/Exiles) EX-HEX (-10/Exiles) 8R-AWN (-10/Exiles) Z-Imprinter (-7/Deep Caves) A7 (-6/Cetus) Combat | -11 -10 -10 -10 -9 -8 -7 -7 -7 -7 -7 -6 -6 -6 -6 -6 -6 -5 -------- Run | Scr Mat Min Exi Min Mat Fac Low Low Zio Dee Pro Fac Ext Cet Arc Hub Fac Damage Taken 20349 | . 223 271 789 174 968 2152 1041 66 . 1401 1862 79 1131 126 446 1518 8102 Core 2275 | . 12 23 138 24 143 246 95 . . 119 201 . 108 8 25 124 1009 Absorbed by Shields 539 | . . . . . . . . . . . . . 419 120 . . . Reduced by Siege Mode 11 | . . . . . . . . . . . . . . . . . 11 Core Remaining (%) 53 | 100 . . . 21 74 . . . . . 5 . . . . 68 . Volleys Fired 647 | . 16 33 35 8 86 89 31 7 . 33 31 11 61 37 14 71 84 Largest 3 | . 2 2 2 2 2 2 2 2 . 2 2 3 3 3 1 3 3 Hottest 255 | . 60 60 40 43 98 51 78 78 . 75 120 173 240 255 75 205 223 Shots Fired 1153 | . 29 64 52 16 169 177 57 14 . 55 59 21 129 49 14 129 119 Gun 700 | . 26 64 52 16 94 177 55 14 . 42 59 10 7 . . 60 24 Cannon 370 | . . . . . 73 . . . . . . 11 122 43 14 57 50 Launcher 83 | . 3 . . . 2 . 2 . . 13 . . . 6 . 12 45 Special . | . . . . . . . . . . . . . . . . . . Kinetic 576 | . 13 49 52 16 94 177 45 9 . 42 . 1 . . . 54 24 Thermal 301 | . . . . . 73 . . . . . . 11 122 12 . 33 50 Explosive 35 | . 3 . . . . . 2 . . 1 . . . . . 12 17 Electromagnetic 166 | . 13 15 . . 2 . 10 5 . 12 . . . 37 14 30 28 Phasic 75 | . . . . . . . . . . . 59 9 7 . . . . Robot Hit Streak 36 | . 4 7 14 2 33 20 19 31 . 32 20 12 13 8 15 36 17 Robot Miss Streak 6 | . 5 2 5 3 3 6 2 . . 6 2 2 3 1 1 2 2 Penetration Max 1 | . . . . . 1 . . . . . . . . . . 1 1 Secondary Targets 7 | . . . . 2 2 . 2 . . . 1 . . . . . . Max Gunslinging Chain 1 | . . . . 1 1 . 1 . . . 1 . . . . . . Shots Hit Robots 807 | . 12 33 42 8 128 137 39 12 . 25 51 14 98 32 12 88 76 Core Hits 461 | . 14 16 15 4 47 56 15 8 . 30 9 4 37 21 5 62 118 Critical Hits 41 | . . . 1 . 1 2 1 . . 1 . 2 12 4 1 12 4 Critical Kills 15 | . . . . . . . 1 . . . . . 2 1 1 9 1 Critical Parts Destroyed 22 | . . . . . 1 1 . . . 1 . 2 8 3 . 3 3 Melee Attacks 11 | . . . 10 . . . 1 . . . . . . . . . . Impact . | . . . . . . . . . . . . . . . . . . Slashing 11 | . . . 10 . . . 1 . . . . . . . . . . Piercing . | . . . . . . . . . . . . . . . . . . Sneak Attacks . | . . . . . . . . . . . . . . . . . . Combat Hostiles . | . . . . . . . . . . . . . . . . . . Follow-up Attacks . | . . . . . . . . . . . . . . . . . . Damage Inflicted 27666 | . 416 563 690 112 2748 2300 1111 216 . 1105 1683 589 2966 1119 366 4158 7524 Guns 9472 | . 190 451 414 112 1051 2300 628 216 . 290 1683 198 231 . . 1224 484 Cannons 7785 | . . . . . 1562 . . . . . . 228 2735 548 366 1246 1100 Explosions 10042 | . 226 110 . . 135 . 483 . . 815 . 163 . 571 . 1688 5851 Melee 276 | . . . 276 . . . . . . . . . . . . . . Ramming 91 | . . 2 . . . . . . . . . . . . . . 89 Kinetic 6706 | . 86 292 414 112 1051 2300 483 112 . 290 . . . . . 1082 484 Thermal 8286 | . . 110 . . 1562 . 61 . . 251 . 391 2735 589 . 565 2022 Explosive 4841 | . 226 . . . . . 422 . . 160 . . . . . 579 3454 Electromagnetic 5354 | . 104 159 . . 135 . 145 104 . 404 . . . 530 366 1932 1475 Impact . | . . . . . . . . . . . . . . . . . . Slashing 276 | . . . 276 . . . . . . . . . . . . . . Piercing . | . . . . . . . . . . . . . . . . . . Phasic 2112 | . . . . . . . . . . . 1683 198 231 . . . . Highest Corruption 14 | . . . . . . 1 . . 6 . . . . . . 2 14 Average Corruption 6 | . . . . . . 1 . . 4 . . . . . . 1 10 Corruption Purged 10 | . . . . . . 2 . . 8 . . . . . . . . Effects 30 | . . . . . . 2 . . 6 . . . . . . . 22 Message Errors 7 | . . . . . . 1 . . 1 . . . . . . . 5 Matter Fused 5 | . . . . . . . . . . . . . . . . . 5 Heat Flow Errors 2 | . . . . . . . . . 1 . . . . . . . 1 Energy Discharges 2 | . . . . . . . . . 1 . . . . . . . 1 Parts Rejected 2 | . . . . . . . . . . . . . . . . . 2 Data Loss (minor) 8 | . . . . . . 1 . . 3 . . . . . . . 4 Data Loss (major) 1 | . . . . . . . . . . . . . . . . . 1 Targeting Errors 2 | . . . . . . . . . . . . . . . . . 2 Weapon Failures 1 | . . . . . . . . . . . . . . . . . 1 Overload Shots . | . . . . . . . . . . . . . . . . . . Overflow Damage 796 | . 48 . . . 40 . 16 . . 74 . 101 . . . 224 293 Projectiles 104 | . . . . . 40 . . . . . . 19 . . . 14 31 Explosions 692 | . 48 . . . . . 16 . . 74 . 82 . . . 210 262 Melee . | . . . . . . . . . . . . . . . . . . Knockbacks . | . . . . . . . . . . . . . . . . . . Impact . | . . . . . . . . . . . . . . . . . . Kinetic . | . . . . . . . . . . . . . . . . . . Secondary . | . . . . . . . . . . . . . . . . . . Self-Inflicted Damage 1210 | . 151 35 . . . . 63 . . . . 79 . . . 369 513 Shots 28 | . 3 1 . . . . 1 . . . . 1 . . . 5 17 Rammed 16 | . . . . . . . . . . . . . . . . . 16 Targets Rammed 17 | . . 1 . . . . . . . . . . . . . . 16 Kicked . | . . . . . . . . . . . . . . . . . . Crushed 1 | . . 1 . . . . . . . . . . . . . . . Highest Temperature 563 | . 12 45 . . 8 . 192 31 91 148 336 285 180 160 102 225 563 Average Temperature 83 | . 10 19 . . 5 . 73 17 54 68 168 107 44 61 46 57 107 Received Heat Transfer 3013 | . 18 126 . . 414 531 . 15 . 423 144 . 207 10 81 312 732 Effects 8 | . . . . . . . . . . . . 2 . . . . 6 Shutdowns 2 | . . . . . . . . . . . . . . . . . 2 Energy Bleed 1 | . . . . . . . . . . . . . . . . . 1 Interference 2 | . . . . . . . . . . . . 2 . . . . . Short Circuit 1 | . . . . . . . . . . . . . . . . . 1 Damage (minor) 2 | . . . . . . . . . . . . . . . . . 2 Siege Activations 3 | . . . . . . . . . . . . . . 1 . 1 1 Total Turns 51 | . . . . . . . . . . . . . . 11 . 13 27 Longest Duration 27 | . . . . . . . . . . . . . . 11 . 13 27 Robots Corrupted 11 | . . . . . . . 1 . . 1 . . . 1 2 2 4 Combat Hostiles 9 | . . . . . . . 1 . . 1 . . . . 2 1 4 Parts Fried 35 | . 1 1 . . . . 1 . . 4 . . 3 6 2 11 6 Impact Corruptions . | . . . . . . . . . . . . . . . . . . Robots Melted . | . . . . . . . . . . . . . . . . . . Combat Hostiles . | . . . . . . . . . . . . . . . . . . Parts Melted 15 | . . . . . 3 . . . . . . . 9 . . . 3 Heat Transferred 10018 | . . 100 . . 2294 . 50 . . 200 . 396 3608 496 . 855 2019 Parts Sabotaged . | . . . . . . . . . . . . . . . . . . Parts Stolen . | . . . . . . . . . . . . . . . . . . Parts Stripped . | . . . . . . . . . . . . . . . . . . Power Chain Reactions 15 | . . 1 . . 1 . 1 . . 3 . . . 2 . . 7 Missiles Intercepted . | . . . . . . . . . . . . . . . . . . Alert | -11 -10 -10 -10 -9 -8 -7 -7 -7 -7 -7 -6 -6 -6 -6 -6 -6 -5 ------- Run | Scr Mat Min Exi Min Mat Fac Low Low Zio Dee Pro Fac Ext Cet Arc Hub Fac Peak Influence 1947 | . 218 219 . 124 428 362 . . . . . 112 269 624 266 1413 1947 Initial 692 | . . 84 . . . 143 . . . . . . 7 104 169 93 692 Average 306 | . 118 96 . 64 192 192 . . . . . 35 75 452 240 302 1260 Maximum Alert Level 5 | . 1 1 . . 2 1 . . . . . . 1 2 1 4 5 Low Security (%) 57 | . 86 99 . 100 54 50 . . . . . 100 91 10 17 32 . Level 1 22 | . 13 . . . 41 49 . . . . . . 8 14 82 38 . Level 2 6 | . . . . . 4 . . . . . . . . 74 . 24 3 Level 3 5 | . . . . . . . . . . . . . . . . 2 38 Level 4 4 | . . . . . . . . . . . . . . . . 2 36 Level 5 . | . . . . . . . . . . . . . . . . . . High Security 2 | . . . . . . . . . . . . . . . . . 21 Max Security . | . . . . . . . . . . . . . . . . . . Squads Dispatched 45 | . 1 . . . 7 8 . . . . . 2 4 . . 5 18 Investigation 11 | . 1 . . . 5 3 . . . . . . 1 . . 1 . Extermination 4 | . . . . . . 3 . . . . . . . . . 1 . Reinforcement 15 | . . . . . . 2 . . . . . 2 3 . . 2 6 Assault 13 | . . . . . . . . . . . . . . . . 1 12 Garrison 2 | . . . . . 2 . . . . . . . . . . . . Intercept . | . . . . . . . . . . . . . . . . . . Construction Impeded 5 | . . . . . . . . . . . . . 1 . . 1 3 Haulers Reinforced 1 | . . . . . . . . . . . . . . . . . 1 Stealth | -11 -10 -10 -10 -9 -8 -7 -7 -7 -7 -7 -6 -6 -6 -6 -6 -6 -5 --------- Run | Scr Mat Min Exi Min Mat Fac Low Low Zio Dee Pro Fac Ext Cet Arc Hub Fac Distress Signals 14 | . 1 . . . 4 1 . . . . . . 3 2 . 1 2 Communications Jammed 49 | . . . . . . . . . . . . . . . . . 49 Distress Signals 49 | . . . . . . . . . . . . . . . . . 49 Times Spotted 324 | . 9 8 15 6 37 29 10 7 . 13 4 5 36 16 7 37 85 Peak Tracking Total 20 | . 4 3 9 2 6 5 4 3 . 5 2 1 6 5 2 7 20 Tactical Retreats 16 | . 1 1 2 . 3 2 . 2 . 1 . . . . . 1 3 Traps | -11 -10 -10 -10 -9 -8 -7 -7 -7 -7 -7 -6 -6 -6 -6 -6 -6 -5 ------- Run | Scr Mat Min Exi Min Mat Fac Low Low Zio Dee Pro Fac Ext Cet Arc Hub Fac Traps Triggered 10 | . 1 . 1 . . 1 . . . . . . 5 . . . 2 Indirectly . | . . . . . . . . . . . . . . . . . . Trap Hack Attempts . | . . . . . . . . . . . . . . . . . . Triggered . | . . . . . . . . . . . . . . . . . . Disarmed . | . . . . . . . . . . . . . . . . . . Reprogrammed . | . . . . . . . . . . . . . . . . . . Reused . | . . . . . . . . . . . . . . . . . . Traps Extracted . | . . . . . . . . . . . . . . . . . . Installed 1 | . . . 1 . . . . . . . . . . . . . . Triggered . | . . . . . . . . . . . . . . . . . . Machines | -11 -10 -10 -10 -9 -8 -7 -7 -7 -7 -7 -6 -6 -6 -6 -6 -6 -5 ---------- Run | Scr Mat Min Exi Min Mat Fac Low Low Zio Dee Pro Fac Ext Cet Arc Hub Fac Machines Disabled 51 | . 2 . 3 . 2 . 1 . . 1 . 2 . 2 1 32 5 Max in Single Turn 9 | . 2 . 1 . 1 . 1 . . . . 1 . . . 9 2 Garrison Access 2 | . . . . . . . . . . . . 1 . . . . 1 Network Hub 3 | . . . . . . . . . . . . . . . . 3 . Machines Sabotaged . | . . . . . . . . . . . . . . . . . . Garrisons Compromised . | . . . . . . . . . . . . . . . . . . Overloaded Fab Kills . | . . . . . . . . . . . . . . . . . . Fab Network Shutdowns . | . . . . . . . . . . . . . . . . . . Hacking | -11 -10 -10 -10 -9 -8 -7 -7 -7 -7 -7 -6 -6 -6 -6 -6 -6 -5 --------- Run | Scr Mat Min Exi Min Mat Fac Low Low Zio Dee Pro Fac Ext Cet Arc Hub Fac Machines Accessed 46 | . 2 . 1 . 9 6 . 2 . . . 6 8 . . 9 3 Terminals 34 | . 2 . . . 6 5 . . . . . 3 8 . . 9 1 Fabricators 1 | . . . . . . . . . . . . 1 . . . . . Repair Stations 2 | . . . . . 1 . . . . . . . . . . . 1 Recycling Units 3 | . . . . . 2 1 . . . . . . . . . . . Scanalyzers 1 | . . . . . . . . . . . . 1 . . . . . Garrison Access 2 | . . . . . . . . . . . . 1 . . . . 1 Total Hacks 154 | . 10 . 1 . 34 12 . 8 . . . 18 25 . . 34 12 Successful 79 | . 4 . 1 . 16 2 . 8 . . . 12 17 . . 14 5 Failed 73 | . 5 . . . 18 10 . . . . . 6 8 . . 19 7 Catastrophic 7 | . 1 . . . 1 3 . . . . . . . . . 1 1 Database Lockouts 2 | . 1 . . . . . . . . . . . . . . 1 . Manual 75 | . 9 . 1 . 17 9 . . 4 . . 6 8 . . 21 . Terminals 112 | . 10 . . . 21 10 . . . . . 10 25 . . 34 2 Fabricators 4 | . . . . . . . . . . . . 4 . . . . . Repair Stations 11 | . . . . . 7 . . . . . . . . . . . 4 Recycling Units 8 | . . . . . 6 2 . . . . . . . . . . . Scanalyzers 3 | . . . . . . . . . . . . 3 . . . . . Garrison Access 7 | . . . . . . . . . . . . 1 . . . . 6 Terminal Hacks 48 | . 2 . 1 . 7 1 . 8 . . . 5 15 . . 8 1 Record 11 | . . . 1 . 1 . . 7 . . . . 2 . . . . Part Schematic 6 | . . . . . . . . . . . . . 5 . . 1 . Robot Analysis 5 | . 1 . . . 2 . . . . . . . 1 . . 1 . Prototype ID Bank 1 | . . . . . . . . . . . . 1 . . . . . Open Door 5 | . . . . . . . . 1 . . . 1 3 . . . . Level Access Points 1 | . . . . . . . . . . . . . . . . 1 . Branch Access Points 3 | . . . . . 1 . . . . . . 1 . . . . 1 Machine Index 2 | . . . . . . . . . . . . 1 . . . 1 . Alert Level 2 | . . . . . . . . . . . . 1 1 . . . . Unreport Threat 7 | . . . . . 2 . . . . . . . 3 . . 2 . Hauler Manifests 2 | . . . . . . 1 . . . . . . . . . 1 . Registered Components 1 | . . . . . . . . . . . . . . . . 1 . Zone Layout 2 | . 1 . . . 1 . . . . . . . . . . . . Fabricator Hacks 1 | . . . . . . . . . . . . 1 . . . . . Build 1 | . . . . . . . . . . . . 1 . . . . . Repair Station Hacks 8 | . . . . . 5 . . . . . . . . . . . 3 Scan Component 5 | . . . . . 3 . . . . . . . . . . . 2 Repair 3 | . . . . . 2 . . . . . . . . . . . 1 Recycling Unit Hacks . | . . . . . . . . . . . . . . . . . . Scanalyzer 2 | . . . . . . . . . . . . 2 . . . . . Insert Component 1 | . . . . . . . . . . . . 1 . . . . . Analyze 1 | . . . . . . . . . . . . 1 . . . . . Garrison Access Hacks 2 | . . . . . . . . . . . . 1 . . . . 1 Seal Access 2 | . . . . . . . . . . . . 1 . . . . 1 Unauthorized Hacks 18 | . 2 . . . 4 1 . . . . . 3 2 . . 6 . Terminals 13 | . 2 . . . 2 . . . . . . 1 2 . . 6 . Track 8 | . 2 . . . 1 . . . . . . 1 1 . . 3 . Botnet 5 | . . . . . 1 . . . . . . . 1 . . 3 . Fabricators 2 | . . . . . . . . . . . . 2 . . . . . Prioritize 1 | . . . . . . . . . . . . 1 . . . . . Haulers 1 | . . . . . . . . . . . . 1 . . . . . Repair Stations . | . . . . . . . . . . . . . . . . . . Recycling Units 3 | . . . . . 2 1 . . . . . . . . . . . Tunnel 3 | . . . . . 2 1 . . . . . . . . . . . Scanalyzers . | . . . . . . . . . . . . . . . . . . Garrison Access . | . . . . . . . . . . . . . . . . . . Data Cores Recovered . | . . . . . . . . . . . . . . . . . . Used . | . . . . . . . . . . . . . . . . . . Hacking Detections 37 | . 2 . . . 8 6 . . . . . 3 7 . . 9 2 Full Trace Events 6 | . . . . . 3 2 . . . . . . . . . 1 . Feedback Events . | . . . . . . . . . . . . . . . . . . Feedback Blocked . | . . . . . . . . . . . . . . . . . . Robot Schematics Acquired . | . . . . . . . . . . . . . . . . . . Robots Built . | . . . . . . . . . . . . . . . . . . Matter . | . . . . . . . . . . . . . . . . . . Time . | . . . . . . . . . . . . . . . . . . Total Robot Build Rating . | . . . . . . . . . . . . . . . . . . Part Schematics Acquired 7 | . . . . . . . . . . . . 1 5 . . 1 . Parts Built 1 | . . . . . . . . . . . . 1 . . . . . Matter 212 | . . . . . . . . . . . . 212 . . . . . Time 53 | . . . . . . . . . . . . 53 . . . . . Total Part Build Rating 6 | . . . . . . . . . . . . 6 . . . . . Parts Repaired 3 | . . . . . 2 . . . . . . . . . . . 1 Time 180 | . . . . . 112 . . . . . . . . . . . 68 Parts Recycled . | . . . . . . . . . . . . . . . . . . Recycled Matter . | . . . . . . . . . . . . . . . . . . Retrieved Matter . | . . . . . . . . . . . . . . . . . . Retrieved Components . | . . . . . . . . . . . . . . . . . . Parts Scanalyzed 1 | . . . . . . . . . . . . 1 . . . . . Part Schematics Acquired 1 | . . . . . . . . . . . . 1 . . . . . Parts Damaged . | . . . . . . . . . . . . . . . . . . Bothacking | -11 -10 -10 -10 -9 -8 -7 -7 -7 -7 -7 -6 -6 -6 -6 -6 -6 -5 ------------ Run | Scr Mat Min Exi Min Mat Fac Low Low Zio Dee Pro Fac Ext Cet Arc Hub Fac Used RIF Installer . | . . . . . . . . . . . . . . . . . . Robots Hacked . | . . . . . . . . . . . . . . . . . . Non-combat . | . . . . . . . . . . . . . . . . . . Combat . | . . . . . . . . . . . . . . . . . . Robot Hacks Applied . | . . . . . . . . . . . . . . . . . . Relay Couplers Released . | . . . . . . . . . . . . . . . . . . Robots Rewired 14 | . . . . . . . 3 . . . . . 11 . . . . Allies Hacked . | . . . . . . . . . . . . . . . . . . Hacks Repelled . | . . . . . . . . . . . . . . . . . . Allies | -11 -10 -10 -10 -9 -8 -7 -7 -7 -7 -7 -6 -6 -6 -6 -6 -6 -5 -------- Run | Scr Mat Min Exi Min Mat Fac Low Low Zio Dee Pro Fac Ext Cet Arc Hub Fac Total Allies 23 | . . . . 2 . . 3 . 3 . . . 15 . . . . Largest Group 9 | . . . . 2 2 . 3 3 3 3 1 . 9 6 1 . . Highest-Rated Group 375 | . . . . 41 41 . 60 60 90 90 31 . 375 288 32 . . Highest-Rated Ally 156 | . . . . 31 31 . 20 20 31 31 31 . 156 156 32 . . Total Orders 1 | . . . . . . . . . . . . . . 1 . . . STAY 1 | . . . . . . . . . . . . . . 1 . . . Ally Attacks 272 | . . . 27 7 17 . . 7 . 65 7 . 74 60 8 . . Total Damage 6911 | . . . 1401 147 269 . . 193 . 812 161 . 2088 1788 52 . . Kills 53 | . . . 10 1 1 . . 1 . 12 . . 15 12 1 . . Allies Corrupted 1 | . . . . . . . . . . . . . . 1 . . . Allies Melted . | . . . . . . . . . . . . . . . . . . Turrets Deployed 4 | . . . 4 . . . . . . . . . . . . . . Intel | -11 -10 -10 -10 -9 -8 -7 -7 -7 -7 -7 -6 -6 -6 -6 -6 -6 -5 ------- Run | Scr Mat Min Exi Min Mat Fac Low Low Zio Dee Pro Fac Ext Cet Arc Hub Fac Robot Analysis Total 5 | . 1 . . . 2 . . . . . . . 1 . . 1 . Derelict Logs Recovered 7 | . . 1 . 1 . . 1 3 . . 1 . . . . . . Drone Launches . | . . . . . . . . . . . . . . . . . . Drone Recoveries . | . . . . . . . . . . . . . . . . . . Exploration | -11 -10 -10 -10 -9 -8 -7 -7 -7 -7 -7 -6 -6 -6 -6 -6 -6 -5 ------------- Run | Scr Mat Min Exi Min Mat Fac Low Low Zio Dee Pro Fac Ext Cet Arc Hub Fac Turns Passed 21858 | . 383 867 1738 426 1241 1973 1912 1518 1998 3429 1254 829 1393 421 104 1091 1281 Spaces Moved 9918 | 1 289 471 896 249 432 913 849 645 1049 1414 509 366 610 164 43 504 514 Core 1 | . . . . . . . . . . . . . . . . . 1 Treads 8985 | . 43 471 896 249 432 913 849 645 1049 1414 254 . 573 164 43 504 486 Legs 478 | 1 3 . . . . . . . . . 255 192 . . . . 27 Wheels 454 | . 243 . . . . . . . . . . 174 37 . . . . Hover . | . . . . . . . . . . . . . . . . . . Flight . | . . . . . . . . . . . . . . . . . . Fastest Speed 90 | 120 90 160 160 160 180 170 170 166 166 160 170 110 110 160 160 160 120 Average Speed 177 | 120 106 160 170 160 183 173 176 185 184 184 219 200 175 172 160 160 172 Slowest Speed 1450 | 120 180 160 200 160 200 180 186 186 186 200 350 290 220 180 160 160 1450 Overloaded Moves . | . . . . . . . . . . . . . . . . . . Propulsion Burnouts . | . . . . . . . . . . . . . . . . . . Robots Hopped . | . . . . . . . . . . . . . . . . . . Cave-ins Triggered . | . . . . . . . . . . . . . . . . . . Exploration Rate (%) 57 | 2 58 65 88 85 47 33 90 69 80 77 51 13 75 56 66 59 19 Regions Visited 17 Branch Regions 12 Pre-discovered Areas 4 | . . . 1 . 2 1 . . . . . . . . . . . Known Exits Taken 4 | . . . . 1 . 1 . . . . . 1 . . . 1 . Unknown Exits Taken 13 | 1 1 1 1 . 1 . 1 1 1 1 1 . 1 1 1 . . Scrap Searched 14 | . . 2 . 2 . . 6 1 1 . 2 . . . . . . Spaces Dug 66 | . 4 . . . . . 1 . . . . . . . . 50 11 Terrain Destroyed 1043 | . 42 7 . . 13 2 33 . . 32 7 13 10 29 . 680 175 Melee 1 | . . . . . . . 1 . . . . . . . . . . Projectile 61 | . . . . . 7 2 . . . . 7 1 10 . . 21 13 AOE 981 | . 42 7 . . 6 . 32 . . 32 . 12 . 29 . 659 162 Terrain Rammed . | . . . . . . . . . . . . . . . . . . Walls Destroyed . | . . . . . . . . . . . . . . . . . . Machines Disabled . | . . . . . . . . . . . . . . . . . . Actions | -11 -10 -10 -10 -9 -8 -7 -7 -7 -7 -7 -6 -6 -6 -6 -6 -6 -5 --------- Run | Scr Mat Min Exi Min Mat Fac Low Low Zio Dee Pro Fac Ext Cet Arc Hub Fac Total 13067 | . 335 524 1050 262 710 1129 1205 951 1114 2181 584 443 810 268 64 666 771 Wait 1732 | . 2 11 47 . 139 53 270 277 . 648 15 46 26 24 6 74 94 Move 9901 | . 288 470 895 248 431 912 848 644 1048 1413 508 365 609 163 42 503 514 Hop . | . . . . . . . . . . . . . . . . . . Pick Up 207 | . 10 4 31 2 19 20 6 6 24 35 14 6 3 11 . 5 11 Fast Attach 75 | . 2 . 7 . 5 6 2 . 15 10 5 3 4 6 . 2 8 Attach 92 | . 4 1 4 . 8 10 8 2 3 7 4 6 2 4 1 1 27 Detach 16 | . . . . . . 1 2 . 1 1 1 3 . 1 . . 6 Swap 107 | . 7 1 1 2 11 17 13 10 3 11 3 1 10 5 1 4 7 Drop 160 | . 6 3 17 2 11 21 7 5 20 23 3 2 13 17 . 6 4 Fire 647 | . 16 33 35 8 86 89 31 7 . 33 31 11 61 37 14 71 84 Melee 11 | . . . 10 . . . 1 . . . . . . . . . . Ram 1 | . . . . . . . . . . . . . . . . . 1 Kick 1 | . . . . . . . . . . . . . . . . . 1 Crush 15 | . . 1 . . . . . . . . . . . . . . 14 Escape Stasis 10 | . . . 2 . . . . . . . . . 8 . . . . Rewire 91 | . . . . . . . 17 . . . . . 74 . . . . Trap 1 | . . . 1 . . . . . . . . . . . . . . Miscellaneous . | . . . . . . . . . . . . . . . . . . Route ------- -11/Scrapyard -10/Materials (discovered 2 exits: [*Mat] / [*Min]) -10/Mines (discovered 3 exits: [*Mat x2] / *Exi) -10/Exiles -9/Mines (discovered 2 exits: *Mat x2) -8/Materials -7/Factory (discovered 2 exits: *Low x2) -7/Lower Caves -7/Lower Caves (discovered 2 exits: *Fac / *Zio) -7/Zion (discovered 2 exits: [*Dee] / [*Pro]) -7/Deep Caves -6/Proximity Caves -6/Factory (discovered 7 exits: *Fac x3 / Low x2 / *Ext x2) -6/Extension (discovered 2 exits: *Fac / [*Cet]) -6/Cetus (discovered 2 exits: *Fac / [*Arc]) -6/Archives -6/Hub_04(d) (discovered 4 exits: *Fac x4) -5/Factory (discovered 3 exits: [*Fac] / *Upp x2) History --------- Turn | Location | Event 1 | -11/Scrapyard | Discovered new exit (range 0) 1 | -11/Scrapyard | Entered Materials 28 | -10/Materials | Central database locked down 176 | -10/Materials | Discovered new exit (range 7) 300 | -10/Materials | Build established: Mutant 324 | -10/Materials | Discovered new exit (range 16) 384 | -10/Materials | Entered Mines 519 | -10/Mines | Discovered new exit (range 5) 884 | -10/Mines | A weapon hastily lodged in a ceiling crevice suddenly fell to the ground 901 | -10/Mines | Found a hidden stash of uninstalled traps 977 | -10/Mines | Discovered new exit (range 3) 1043 | -10/Mines | Learned Materials terminal intel 1051 | -10/Mines | Deemed a non-threat by the Exiles lab entrance 1051 | -10/Mines | Discovered new exit (range 5) 1111 | -10/Mines | Assembled infested the area 1116 | -10/Mines | Assisted by a Guerilla fighting off Assembled 1251 | -10/Mines | Entered Exiles 1291 | -10/Exiles | Met 8R-AWN 1448 | -10/Exiles | Met EX-HEX 1497 | -10/Exiles | Met EX-BIN 1518 | -10/Exiles | Met EX-DEC 1526 | -10/Exiles | Learned location of Zion (-7) 1859 | -10/Exiles | Aligned with FarCom system 1861 | -10/Exiles | Given EX-Vault access code 1907 | -10/Exiles | Opened EX-Vault 1915 | -10/Exiles | Found Prototype Energy Cannon 1920 | -10/Exiles | Found Prototype Device 1925 | -10/Exiles | Found Deploy-a-Sentry 1928 | -10/Exiles | Found Deploy-a-Sentry 1931 | -10/Exiles | Found Deploy-a-Sentry 1976 | -10/Exiles | Warned to stay clear of 0b10 Research branches 2046 | -10/Exiles | Build established: Hauler-Mutant 2134 | -10/Exiles | DAS Turret deployed 2145 | -10/Exiles | DAS Turret deployed 2157 | -10/Exiles | DAS Turret deployed 2197 | -10/Exiles | Attacked by the Exiles 2198 | -10/Exiles | Allies destroyed EX-DEC 2204 | -10/Exiles | Allies destroyed EX-BIN 2211 | -10/Exiles | Allies destroyed EX-HEX 2247 | -10/Exiles | DAS Turret deployed 2304 | -10/Exiles | Core integrity fell below 50% 2345 | -10/Exiles | Destroyed 8R-AWN 2346 | -10/Exiles | Lost 4 parts (1p1n2w) 2373 | -10/Exiles | Found Prototype Device 2377 | -10/Exiles | Identified System Purifier 2391 | -10/Exiles | Identified Latent Energy Streamer 2669 | -10/Exiles | Build established: Mutant 2971 | -10/Exiles | Discovered new exit (range 14) 2989 | -10/Exiles | Entered Mines 2996 | -9/Mines | Discovered new exit (range 14) 3021 | -9/Mines | Identified exit to Materials 3185 | -9/Mines | Received a Rocket Launcher from a helpful Derelict 3415 | -9/Mines | Entered Materials 3415 | -8/Materials | Accompanied by 2 allies 3415 | -8/Materials | Evolved 4 slots: Utility x4 3416 | -8/Materials | Loaded intel: 12 terminal locations 3420 | -8/Materials | Led the pair of lost Derelicts to an unsafe place 4056 | -8/Materials | Discovered new exit (range 16) 4193 | -8/Materials | Repaired Cold Fusion Reactor 4208 | -8/Materials | Build established: Hauler-Mutant 4226 | -8/Materials | Repaired Cooling System 4545 | -8/Materials | Garrison activated, responded to threat 4656 | -8/Materials | Entered Factory 4656 | -7/Factory | Evolved 2 slots: Propulsion x1, Utility x1 4812 | -7/Factory | Build established: Scavenger-Mutant 5080 | -7/Factory | Discovered new exit (range 2) 5203 | -7/Factory | Discovered new exit (range 2) 5375 | -7/Factory | Lost 4 parts (1p1n1u1w) 5628 | -7/Factory | Build established: Hauler-Mutant 6629 | -7/Factory | Identified exit to Lower Caves 6629 | -7/Factory | Entered Lower Caves 7140 | -7/Lower Caves | Build established: Hauler-Skirmisher 7464 | -7/Lower Caves | Learned Factory trap positions 7532 | -7/Lower Caves | Discovered new exit (range 15) 7911 | -7/Lower Caves | Attacked by a delusional Derelict stockpiling Unaware 8027 | -7/Lower Caves | Build established: Hauler-Mutant 8438 | -7/Lower Caves | Build established: Hauler-Skirmisher 8541 | -7/Lower Caves | Entered another Lower Caves area 8541 | -7/Lower Caves | Accompanied by 3 allies 8737 | -7/Lower Caves | Learned location of 1 exit from Factory 8789 | -7/Lower Caves | Discovered new exit (range 10) 9001 | -7/Lower Caves | Attracted the attention of an 0b10 checkpoint 9357 | -7/Lower Caves | Discovered new exit (range 15) 9446 | -7/Lower Caves | Learned location of 1 exit from Factory 9446 | -7/Lower Caves | Learned Research stockpile data 9446 | -7/Lower Caves | Learned Armory stockpile data 9446 | -7/Lower Caves | Learned Extension terminal intel 10017 | -7/Lower Caves | Encountered a Warlord checkpoint 10029 | -7/Lower Caves | Learned Factory stockpile data 10059 | -7/Lower Caves | Entered Zion 10145 | -7/Zion | Received a hallucinogenic algorithm 10253 | -7/Zion | Discovered new exit (range 14) 10560 | -7/Zion | Acquired unknown access codes intercepted by a Zionite 10657 | -7/Zion | Given A8's code to call for help 10886 | -7/Zion | Found Prototype Processor 10886 | -7/Zion | Identified Exp. Target Analyzer 10890 | -7/Zion | Found Prototype Processor 10890 | -7/Zion | Identified Exp. Armor Integrity Analyzer 10894 | -7/Zion | Found Prototype Processor 10894 | -7/Zion | Identified Exp. Melee Analysis Suite 10901 | -7/Zion | Found Prototype Processor 10901 | -7/Zion | Identified Exp. Signal Interpreter 10908 | -7/Zion | Found Prototype Processor 10908 | -7/Zion | Identified Spectral Analyzer 11045 | -7/Zion | Found Prototype Hackware 11160 | -7/Zion | Build established: Hauler-Mutant 11173 | -7/Zion | Found Prototype Device 11173 | -7/Zion | Identified Mobile Refinery Mk. CCLXVII 11328 | -7/Zion | Gained Derelict followers 11719 | -7/Zion | Found Prototype Launcher 11719 | -7/Zion | Identified Rocket Array 11823 | -7/Zion | System corruption cleaned by Quarantine Array 12020 | -7/Zion | Opened final containment barrier to the Deep Caves 12044 | -7/Zion | Discovered new exit (range 5) 12048 | -7/Zion | Saw the warning signs outside the Deep Caves entrance 12057 | -7/Zion | Entered Deep Caves 12057 | -7/Deep Caves | Accompanied by 3 allies 12565 | -7/Deep Caves | Attacked by Z-Imprinter 12571 | -7/Deep Caves | Core integrity fell below 50% 12597 | -7/Deep Caves | Allies destroyed Z-Imprinter 12648 | -7/Deep Caves | Found Prototype Protection 12649 | -7/Deep Caves | Identified Zio. Weapon Casing 12699 | -7/Deep Caves | Build established: Scavenger-Mutant 12811 | -7/Deep Caves | Z-Facility disabled 12939 | -7/Deep Caves | Found Prototype Protection 12939 | -7/Deep Caves | Identified Zio. Heavy Carapace 13223 | -7/Deep Caves | Build established: Mutant 13487 | -7/Deep Caves | Discovered new exit (range 6) 14047 | -7/Deep Caves | Build established: Hauler-Mutant 14441 | -7/Deep Caves | Found Zio. Weapon Casing 14452 | -7/Deep Caves | Found Zio. Weapon Casing 14475 | -7/Deep Caves | Found Zio. Weapon Casing 14489 | -7/Deep Caves | Found Zio. Weapon Casing 15486 | -7/Deep Caves | Entered Proximity Caves 15486 | -6/Proximity Caves | Accompanied by 1 ally 15976 | -6/Proximity Caves | Spotted B-75 Beast 16002 | -6/Proximity Caves | Core integrity fell below 20% 16037 | -6/Proximity Caves | Destroyed B-75 Beast 16191 | -6/Proximity Caves | Attracted the attention of an 0b10 checkpoint 16470 | -6/Proximity Caves | Lost 5 parts (2n3u) 16659 | -6/Proximity Caves | Learned location of 1 exit from Factory 16699 | -6/Proximity Caves | Discovered new exit (range 8) 16740 | -6/Proximity Caves | Entered Factory 16740 | -6/Factory | Evolved 2 slots: Utility x1, Weapon x1 16741 | -6/Factory | Identified exit to Extension 16742 | -6/Factory | Identified exit to Factory 16742 | -6/Factory | Identified exit to Lower Caves 16743 | -6/Factory | Loaded intel: 87 trap records 16792 | -6/Factory | Discovered exit to Factory (range 14) 16908 | -6/Factory | Found Launcher Loader 16921 | -6/Factory | Identified Exp. Hacking Suite 17227 | -6/Factory | Fabricated Smartbomb Launcher (x1) 17292 | -6/Factory | Build established: Hacker-Gunner 17569 | -6/Factory | Entered Extension 17570 | -6/Extension | Loaded intel: 12 terminal locations 17612 | -6/Extension | Build established: Hacker-Mutant 17736 | -6/Extension | Rescued a captive Derelict 17863 | -6/Extension | Rescued A7 18355 | -6/Extension | Build established: Commander-Mutant 18408 | -6/Extension | Spotted B-75 Beast 18412 | -6/Extension | Destroyed B-75 Beast 18441 | -6/Extension | Spotted B-75 Beast 18443 | -6/Extension | Destroyed B-75 Beast 18469 | -6/Extension | Disrupted transfer network 18846 | -6/Extension | Build established: Scavenger-Gunner 18853 | -6/Extension | Rescued a captive Derelict 18854 | -6/Extension | Rescued a captive Derelict 18911 | -6/Extension | Discovered exit to Factory (range 10) 18913 | -6/Extension | Discovered new exit (range 6) 18962 | -6/Extension | Entered Cetus 18962 | -6/Cetus | Accompanied by 6 allies (A7) 18967 | -6/Cetus | Acquired a Cetus Manufacturing Module code from A7 18986 | -6/Cetus | Spotted Cetus Guard 18986 | -6/Cetus | Spotted Cetus Guard 18990 | -6/Cetus | Spotted Cetus Guard 18994 | -6/Cetus | Allies destroyed Cetus Guard 18995 | -6/Cetus | Spotted Cetus Guard 19006 | -6/Cetus | Allies destroyed Cetus Guard 19008 | -6/Cetus | Allies destroyed Cetus Guard 19014 | -6/Cetus | Allies destroyed Cetus Guard 19066 | -6/Cetus | P-60 Hacker assimilated allied 58-1P7(g) 19066 | -6/Cetus | Cetus Manufacturing Module disabled 19111 | -6/Cetus | Discovered new exit (range 16) 19160 | -6/Cetus | Spotted Cetus Guard 19160 | -6/Cetus | Spotted Cetus Guard 19162 | -6/Cetus | Allies destroyed Cetus Guard 19163 | -6/Cetus | Spotted Cetus Guard 19163 | -6/Cetus | Spotted Cetus Guard 19164 | -6/Cetus | Destroyed Cetus Guard 19168 | -6/Cetus | Allies destroyed Cetus Guard 19168 | -6/Cetus | Destroyed Cetus Guard 19178 | -6/Cetus | Discovered exit to Factory (range 15) 19187 | -6/Cetus | Met Revision 17 19329 | -6/Cetus | Destroyed A7 19330 | -6/Cetus | Extracted ID and sensor layout for unrecognized location from A7's data core 19344 | -6/Cetus | Found Prototype Protection 19344 | -6/Cetus | Identified Med. Regenerative Plating 19383 | -6/Cetus | Entered Archives 19383 | -6/Archives | Accompanied by 1 ally 19463 | -6/Archives | Discovered new exit (range 15) 19487 | -6/Archives | Entered Hub_04(d) 19623 | -6/Hub_04(d) | Central database locked down 19741 | -6/Hub_04(d) | Discovered exit to Factory (range 13) 19764 | -6/Hub_04(d) | Build established: Scavenger-Mutant 19929 | -6/Hub_04(d) | Found Exp. Signal Interpreter 20008 | -6/Hub_04(d) | Spotted B-75 Beast 20537 | -6/Hub_04(d) | First assault squad dispatched 20539 | -6/Hub_04(d) | Network Hub disabled 20553 | -6/Hub_04(d) | Network Hub disabled 20576 | -6/Hub_04(d) | Network Hub disabled 20578 | -6/Hub_04(d) | Entered Factory 20578 | -5/Factory | Evolved 2 slots: Power x1, Utility x1 20878 | -5/Factory | First assault squad dispatched 21047 | -5/Factory | Repaired Broken Centrium Heavy Treads 21087 | -5/Factory | Identified exit to Upper Caves 21105 | -5/Factory | Discovered new exit (range 15) 21167 | -5/Factory | Destroyed 16 combat bots 21275 | -5/Factory | Build established: Hauler-Mutant 21384 | -5/Factory | System corruption reached 10% 21579 | -5/Factory | High security lockdown imminent 21610 | -5/Factory | Destroyed 9 combat bots 21659 | -5/Factory | High security lockdown engaged 21665 | -5/Factory | Lost 5 parts (1p2u2w) 21769 | -5/Factory | Core integrity fell below 50% 21827 | -5/Factory | Core integrity fell below 20% 21859 | -5/Factory | Destroyed by Y-64 Sentinel with Wave Gun Last Messages --------------- 21837_ Imp. Carbon-fiber Leg destroyed. 21837_ Penetrated by Slug. 21837_ Assembly Bed disabled. 21839_ Door malfunctions. 21844_ J5F>UINC#XSSUWV5X |7VX V%1I 21847_ Penetrated by Slug. 21850_ Critical hit. 21850_ Imp. Carbon-fiber Leg destroyed. 21850_ Assembly Bed disabled. 21853_ Slug penetrates Wall. 21854_ Exp. Armor Integrity Analyzer destroyed. 21855_ Slammed into Y-64 Sentinel. 21856_ M-28 Smith fits Backup Power III on S-27 Virus. 21856_ Penetrated by Slug. 21856_ Imp. Carbon-fiber Leg destroyed. 21856_ S-27 Virus suffers critical hit. 21856_ S-27 Virus destroyed. 21858_ Slammed into Y-64 Sentinel. 21858_ Mic. Fission Core permanently disabled. 21858_ Destabilizing: Short circuit. Map ----- +----------------------------------------------------+ | ?????????????????????????????????? | | ?????????????????????????????????? | | ?????????????????????????????????? | | ?????????????????????????????????? | | ?????????????????????????????????? | | ?????????????????????????????????? | | ?????????????????????????????????? | | ?????????????????????????????????? | | ?????????????????????????????????? | | ?????????????????????????????????? | | ?????????????????????????????????? | | ?????????????????????????????????? | | ?????????????????????????????????? | | ?????????????????????????????????? | | ?????????????????????????????????? | | ?????????????????????????????????? | | ?????????????????????????????????? | | ?????????????????????????????????? | | ??????????????????????###+###????? | | ??????????????????????# #????? | | ??????????????########? [ ?????? | | ?????????????! +? > ?????? | | ???????????? [ ??? ??????? | | ???????????# #?? ??????? | | ???????????# #??#Y#??????? | | ???????????# """ " " #??#@#??????? | | ???????????# """ "G" #??#s#??????? | | ???????????? """ """ ???# #??????? | | ?????????????? ?????#=#??????? | | ?????????#######/########p####???? | | ?????????# Y[= #??? | | ?????????# #??? | | ???????? / "" #??? | | ?????????# """ """" " #??? | | #####???## "F """""" #??? | | ##### """ """""" #??? | | "" """""" #??? | | = #??? | | %*] "" """ """""" #??? | | [ # """""" """"??? #??? | | #+### """""" ""????? #??? | | ????# """??" ""?????? #??? | | ????# ?? ??????? ???? | | ????# ? ???????????? | | ????# ##?##???????????? | | ????# #???????????????? | | ????# #???????????????? | | ????# #???????????????? | | ????# #???????????????? | | ????# ?????????????????? | +----------------------------------------------------+ Best States ------------- Heat Dissipation 83 Energy Generation 39 Energy Capacity 935 Matter Stores 300 Matter Capacity 300 Sight Range 16 Robot Scan Range 20 Terrain Scan Range 24 Terrain Scan Density 110 Jamming Range 16 Armor Coverage 1200 Resistance: TH 15 Resistance: EM 15 Core Shielding 20 Weapon Shielding 100 Evasion (%) 42 Targeting Accuracy 8 Target Analysis 8 Armor Integrity Analysis 90 Recoil Reduction 3 Kinecelleration 30 Offensive Hacking 27 Defensive Hacking 10 Item Schematics ----------------- Lrn. Terrain Scanner | -6/Factory | Scanalyzed Hyp. Gauss Rifle | -6/Extension | Hacked Neutrino Core | -6/Extension | Hacked Adv. Armor Integrity Analyzer | -6/Extension | Hacked Lgt. Fission Core | -6/Extension | Hacked Imp. Heavy Armor Plating | -6/Extension | Hacked Adv. Cooling System | -6/Hub_04(d) | Hacked Robot Schematics ------------------ None Fabricated ------------ Smartbomb Launcher | x1 | -6/Factory | Preloaded Alien Tech Used ----------------- None Achievements -------------- None Challenges ------------ None Game ------ Seed OverloadLightningInverter Manual? 0 Play Time 02:04:25 Cumulative 234.6 hours Start 2021.01.09 @ 11:58:43 End 2021.01.09 @ 14:04:50 Sessions 1 Manual Loads 0 Difficulty Rogue Special Mode None Game No. 209 Rogue 202 Adventurer 0 Explorer 7 Win Type - Total 5 Types 1/0/4/0/0/0/0/0/0 Lore% 71 Gallery% 91 Achievement% 69 Wizard Run 0 Options --------- ASCII 0 Keyboard 0 Movement Numpad Keybinds 0 Fullscreen 1 Font 18/X11 Map View 76x50 Tactical HUD 1 Map Filters NONE Filters NONE Steam 1 RUN: 6af00c6f-272b-4bb9-b291-8eece0232b0e